Cogmind - Beta 15 @@@ ROGUE MODE // 2025.06.06 @ 09:35:42 Player: Fleshy Vegetable Bird Result: Destroyed by JP-CK5(R) with Subdweller Machine Gun Performance ------------- Evolutions (0) 0 Regions Visited (2) 400 Robots Destroyed (38) 190 Value Destroyed (841) 841 Prototype IDs (0) 0 Alien Tech Used (0) 0 Bonus (-5) -5 TOTAL SCORE: 1426 Bonus ------- Friendly Fire -5 Cogmind --------- Core Integrity 0/250 Matter 300/300 Energy 190/200 System Corruption 0% Temperature Cool (0) Movement Rolling (110) Ox2 Location -10/Subcaves Parts ------- > --- POWER (1) -------- Subdweller Power Source > --- PROPULSION (2) --- Wheel Wheel > --- UTILITY (2) ------ High-capacity Storage Unit Seismic Detector > --- WEAPON (2) ------- Subdweller Machine Gun > --- INVENTORY (20) --- Subdweller Power Source Wheel Wheel Subdweller Monowheel Subdweller Monowheel Subdweller Monowheel Subdweller Monowheel High-capacity Storage Unit High-capacity Matter Pod (200) Subdweller Optics Subdweller Optics Subdweller Optics Scrap Shield Makeshift System Shield Makeshift System Restoration Module Subdweller Laser Subdweller Laser Peak State ------------ > --- POWER ------------ Subdweller Power Source > --- PROPULSION ------- Wheel Wheel > --- UTILITY ---------- High-capacity Storage Unit Seismic Detector > --- WEAPON ----------- Riot Gun Heavy Assault Rifle > --- INVENTORY -------- Light Ion Engine Light Treads Wheel Wheel Wheel Wheel Subdweller Monowheel Subdweller Monowheel Subdweller Monowheel High-capacity Storage Unit High-capacity Matter Pod Subdweller Optics Subdweller Optics Seismic Detector Makeshift System Shield Makeshift System Restoration Module Subdweller Laser Subdweller Shrapnel Launcher Mining Laser [Rating: 14] Favorites ----------- Power Ion Engine Engine Ion Engine Propulsion Wheel Treads Light Treads Wheel Wheel Utility Seismic Detector Device Seismic Detector Storage High-capacity Storage Unit Weapon Subdweller Machine Gun Energy Gun Riot Gun Ballistic Gun Subdweller Machine Gun Launcher Grenade Launcher Special Weapon Mining Laser Build | -11 -10 -10 ------- Run | Yrd Mat Sub Slots Evolved . | . . . Power . | . . . Propulsion . | . . . Utility . | . . . Weapon . | . . . Parts Attached 33 | 10 6 17 Power 4 | 1 . 3 Engine 4 | 1 . 3 Core . | . . . Reactor . | . . . Propulsion 13 | 4 2 7 Treads 1 | . . 1 Leg . | . . . Wheel 12 | 4 2 6 Hover . | . . . Flight . | . . . Utility 6 | 3 2 1 Device 3 | 2 . 1 Storage 3 | 1 2 . Processor . | . . . Hackware . | . . . Protection . | . . . Artifact . | . . . Weapon 10 | 2 2 6 Energy Gun 2 | 1 . 1 Energy Cannon . | . . . Ballistic Gun 5 | 1 1 3 Ballistic Cannon . | . . . Launcher 2 | . 1 1 Special Weapon 1 | . . 1 Impact Weapon . | . . . Slashing Weapon . | . . . Piercing Weapon . | . . . Special Melee Weapon . | . . . Unidentified Prototypes . | . . . Parts Lost 8 | . 3 5 Power 2 | . . 2 Propulsion 2 | . 2 . Utility . | . . . Weapon 4 | . 1 3 Highest Loss Streak 3 | . 3 2 To Critical Strikes . | . . . Average Backups 15 | 2 8 18 Power . | . 1 . Propulsion 6 | 1 4 7 Utility 5 | . 1 6 Weapon 2 | . 1 3 Tool/Special . | . . . Unused Backups 23 | 2 . 21 Power 2 | 1 . 1 Propulsion 7 | . . 7 Utility 8 | . . 8 Weapon 6 | 1 . 5 Tool/Special . | . . . Average Slot Usage (%) 94 | . 97 93 Engine 11 | . 14 10 Wheel 27 | . 27 27 Device 14 | . 14 14 Storage 14 | . 14 14 Energy Gun 5 | . 6 5 Ballistic Gun 12 | . 13 12 Launcher 4 | . 6 4 Special Weapon 2 | . . 3 Peak Build Rating 14 | 7 8 14 Average Rating 10 | 6 7 11 On Entrance 4 | . 7 7 Naked Turns . | . . . Heaviest Build 58 | 13 50 58 Greatest Support 20 | 20 20 20 Greatest Overweight (x) 5 | . 2 5 Average Overweight (x) 1 | . 1 2 Largest Inventory Capacity 20 | 8 20 20 Average Capacity 18 | 7 13 20 Most Carried 20 | 7 16 20 Average Carried 16 | 2 8 19 Final Capacity 20 | 8 20 20 Final Carried 18 | 7 16 18 Class Distribution -------------------- 61% | Mutant 38% | Scavenger-Mutant Dominant Class ---------------- Scavenger-Mutant | -10/Materials Mutant | -10/Subcaves Resources | -11 -10 -10 ----------- Run | Yrd Mat Sub Matter Collected 1335 | 303 93 939 Remotely . | . . . Salvage Created 1106 | 197 444 465 Parts 76 | 17 29 30 Haulers Intercepted 2 | . 2 . Recyclers Shooed 3 | 1 2 . Parts Field Recycled . | . . . Retrieved Matter . | . . . Parts Self-Destructed 15 | . . 15 Prevented 2 | . . 2 Kills | -11 -10 -10 ------- Run | Yrd Mat Sub Combat Hostiles Destroyed 25 | . 9 16 Guns 10 | . 6 4 AOE 15 | . 3 12 Classes Destroyed 9 | 2 4 3 Builder 1 | . 1 . Tunneler 6 | 5 1 . Hauler 2 | . 2 . Recycler 2 | 1 1 . Turret 2 | . . 2 Swarmer 9 | . 5 4 Grunt 5 | . 4 1 Sentry 1 | . . 1 Subdweller 10 | . . 10 Best Kill Streak 5 | 2 5 3 Combat Bots Only 3 | . 3 3 Max Kills in Single Turn 2 | 1 2 2 Gunslinging . | . . . Exploded 2 | . 1 2 Melee . | . . . Uniques/NPCs Destroyed . | . . . Combat | -11 -10 -10 -------- Run | Yrd Mat Sub Hostile Shots Fired 130 | . 65 65 Missed 43 | . 13 30 Hits 87 | . 52 35 Projectile 87 | . 52 35 Damage Taken 1170 | . 506 664 Core 255 | . 94 161 Absorbed by Shields . | . . . Regen/Repaired (Parts) 25 | . 25 . Core Remaining (%) 100 | 100 . . Volleys Fired 134 | 18 59 57 Largest 2 | 2 2 2 Hottest 100 | 60 60 100 Shots Fired 188 | 21 95 72 Gun 134 | 21 90 23 Cannon . | . . . Launcher 35 | . 5 30 Special 19 | . . 19 Kinetic 84 | 3 57 24 Thermal 70 | 18 33 19 Explosive 24 | . 5 19 Electromagnetic 10 | . . 10 Robot Hit Streak 14 | 10 14 11 Robot Miss Streak 5 | 1 4 5 Penetration Max . | . . . Secondary Targets . | . . . Shots Hit Robots 97 | 17 56 24 Core Hits 64 | 7 28 29 Critical Kills . | . . . Critical Parts Destroyed 1 | . 1 . Critical Strikes 1 | . 1 . Destroy 1 | . 1 . Melee Attacks . | . . . Impact . | . . . Slashing . | . . . Piercing . | . . . Sneak Attacks . | . . . Combat Hostiles . | . . . Follow-up Attacks . | . . . Damage Inflicted 2289 | 179 713 1397 Guns 940 | 179 513 248 Cannons . | . . . Explosions 1349 | . 200 1149 Melee . | . . . Ramming . | . . . Kinetic 980 | 24 250 706 Thermal 418 | 155 263 . Explosive 779 | . 200 579 Electromagnetic 112 | . . 112 Impact . | . . . Slashing . | . . . Piercing . | . . . Highest Corruption . | . . . Average Corruption . | . . . Corruption Purged . | . . . Corruption Blocked . | . . . Overload Shots . | . . . Overflow Damage 26 | . 18 8 Projectiles . | . . . Explosions 26 | . 18 8 Melee . | . . . Knockbacks . | . . . Impact . | . . . Kinetic . | . . . Secondary . | . . . Self-Inflicted Damage 48 | . . 48 Shots 2 | . . 2 Rammed . | . . . Targets Rammed . | . . . Kicked . | . . . Crushed . | . . . Highest Temperature 97 | 20 97 . Average Temperature 31 | 15 32 . Received Heat Transfer 273 | . 138 135 Siege Activations . | . . . Martial Activations . | . . . Shielding Activations . | . . . Robots Disrupted . | . . . Combat Hostiles . | . . . Robots Corrupted . | . . . Combat Hostiles . | . . . Parts Fried . | . . . Impact Corruptions . | . . . Robots Melted . | . . . Combat Hostiles . | . . . Parts Melted 1 | . 1 . Heat Transferred 950 | 350 600 . Parts Sabotaged . | . . . Parts Stolen . | . . . Parts Stripped . | . . . Power Chain Reactions . | . . . Alert | -11 -10 -10 ------- Run | Yrd Mat Sub Maximum Alert Level . | . . . Low Security (%) 100 | 100 100 . Level 1 . | . . . Level 2 . | . . . Level 3 . | . . . Level 4 . | . . . Level 5 . | . . . High Security . | . . . Max Security . | . . . Peak Influence 169 | 10 169 . Initial . | . . . Average 80 | 2 103 . Influence Increases 634 | 30 354 250 Destroy 0b10 Robot/C 340 | . 180 160 Destroy 0b10 Robot/NC 55 | 30 25 . Destroy Leader 44 | . 44 . Successful Hack 10 | . 10 . Destroy Structure 35 | . 35 . Lose Combat Pursuer 150 | . 60 90 Influence Decreases 634 | 30 244 360 Entered New Map 54 | . . 54 Time Decay 513 | 30 214 269 Lost Part 67 | . 30 37 Squads Dispatched 1 | . 1 . Investigation . | . . . Extermination . | . . . Reinforcement 1 | . 1 . Assault . | . . . Garrison . | . . . Intercept . | . . . Searches Triggered . | . . . Construction Impeded . | . . . Haulers Reinforced . | . . . Active Scanning Responses . | . . . Cargo Convoy Interrupts . | . . . Stealth | -11 -10 -10 --------- Run | Yrd Mat Sub Distress Signals 1 | . 1 . Communications Jammed . | . . . Distress Signals . | . . . Times Spotted 41 | . 19 22 Peak Tracking Total 6 | . 6 3 Tactical Retreats 6 | . 3 3 Traps | -11 -10 -10 ------- Run | Yrd Mat Sub Traps Triggered 2 | . . 2 Indirectly . | . . . Trap Hack Attempts . | . . . Triggered . | . . . Disarmed . | . . . Reprogrammed . | . . . Reused 1 | . . 1 Traps Extracted . | . . . Installed 1 | . . 1 Triggered . | . . . Most Traps Carried 1 | . . 1 Machines | -11 -10 -10 ---------- Run | Yrd Mat Sub Machines Disabled 1 | . . 1 Max in Single Turn 1 | . . 1 Machines Repaired . | . . . Machines Dismantled . | . . . Machines Sabotaged . | . . . Overloaded Fab Kills . | . . . Hacking | -11 -10 -10 --------- Run | Yrd Mat Sub Machines Accessed 2 | . 2 . Terminals 1 | . 1 . Fabricators . | . . . Repair Stations 1 | . 1 . Recycling Units . | . . . Scanalyzers . | . . . Garrison Access . | . . . Total Hacks 5 | . 5 . Successful 4 | . 4 . Failed 1 | . 1 . Catastrophic . | . . . Database Lockouts . | . . . Manual 2 | . 2 . Terminals 3 | . 3 . Fabricators . | . . . Repair Stations 2 | . 2 . Recycling Units . | . . . Scanalyzers . | . . . Garrison Access . | . . . Terminal Hacks 1 | . 1 . Robot Analysis 1 | . 1 . Fabricator Hacks . | . . . Repair Station Hacks 2 | . 2 . Scan Component 1 | . 1 . Repair 1 | . 1 . Recycling Unit Hacks . | . . . Scanalyzer . | . . . Garrison Access Hacks . | . . . Unauthorized Hacks 1 | . 1 . Terminals 1 | . 1 . Botnet 1 | . 1 . Fabricators . | . . . Repair Stations . | . . . Recycling Units . | . . . Scanalyzers . | . . . Garrison Access . | . . . Data Cores Recovered . | . . . Used . | . . . Hacking Detections 1 | . 1 . Full Trace Events . | . . . Feedback Events . | . . . Feedback Blocked . | . . . Robot Schematics Acquired . | . . . Robots Built . | . . . Authchips . | . . . Time . | . . . Total Robot Build Rating . | . . . Part Schematics Acquired . | . . . Parts Built . | . . . Authchips . | . . . Time . | . . . Total Part Build Rating . | . . . Parts Repaired 1 | . 1 . Time 26 | . 26 . Parts Recycled . | . . . Recycled Matter . | . . . Retrieved Matter . | . . . Retrieved Components . | . . . Parts Scanalyzed . | . . . Part Schematics Acquired . | . . . Parts Damaged . | . . . Bothacking | -11 -10 -10 ------------ Run | Yrd Mat Sub Used RIF Installer . | . . . Robots Hacked . | . . . Non-combat . | . . . Combat . | . . . Robot Hacks Applied . | . . . Relay Couplers Released . | . . . Fabnet Peak Effective % . | . . . Robots Rewired . | . . . Allies Hacked . | . . . Hacks Repelled . | . . . Allies | -11 -10 -10 -------- Run | Yrd Mat Sub Total Allies . | . . . Largest Group . | . . . Highest-Rated Group . | . . . Highest-Rated Ally . | . . . Total Orders . | . . . Ally Attacks . | . . . Total Damage . | . . . Kills . | . . . Allies Corrupted . | . . . Allies Melted . | . . . Intel | -11 -10 -10 ------- Run | Yrd Mat Sub Active Infowar (turns) 2467 | . 443 2024 Seismic 2467 | . 443 2024 Robot Analysis Total 1 | . 1 . Derelict Logs Recovered 2 | . . 2 Drone Launches . | . . . Drone Recoveries . | . . . Exploration | -11 -10 -10 ------------- Run | Yrd Mat Sub Turns Passed 2620 | 134 454 2032 Spaces Moved 1709 | 84 262 1363 Core 10 | 10 . . Treads . | . . . Legs . | . . . Wheels 1699 | 74 262 1363 Hover . | . . . Flight . | . . . Fastest Speed 50 | 50 80 110 Average Speed 108 | 78 96 112 Slowest Speed 155 | 100 110 155 Overloaded Moves . | . . . Propulsion Burnouts . | . . . Robots Hopped . | . . . Potential Cave-ins . | . . . Cave-ins Triggered . | . . . Exploration Rate (%) 39 | 4 53 62 Regions Visited 2 Branch Regions 1 Pre-discovered Areas 2 | . . 2 Known Exits Taken . | . . . Unknown Exits Taken 2 | 1 1 . Scrap Searched 13 | . . 13 Spaces Dug 5 | . . 5 Terrain Destroyed 211 | . 34 177 Melee . | . . . Projectile . | . . . AOE 211 | . 34 177 Terrain Rammed . | . . . Walls Destroyed . | . . . Machines Disabled . | . . . Actions | -11 -10 -10 --------- Run | Yrd Mat Sub Total 2256 | 130 380 1746 Wait 293 | . 37 256 Move 1707 | 83 261 1363 Hop . | . . . Pick Up 50 | 14 13 23 Fast Attach 7 | 4 1 2 Attach 13 | 4 2 7 Detach 1 | . . 1 Swap 21 | 2 3 16 Drop 29 | 5 4 20 Fire 134 | 18 59 57 Melee . | . . . Ram . | . . . Kick . | . . . Crush . | . . . Escape Stasis . | . . . Rewire . | . . . Trap 1 | . . 1 Miscellaneous . | . . . Route ------- -11/Scrapyard -10/Materials (discovered 2 exits: [*Mat] / [*Sub]) -10/Subcaves (discovered 1 exit: [*Rec]) History --------- Turn | Location | Event 21 | -11/Scrapyard | Discovered new exit (range 16) 135 | -11/Scrapyard | Entered Materials 287 | -10/Materials | Lost 3 parts (2n1w) 314 | -10/Materials | Discovered new exit (range 4) 529 | -10/Materials | Discovered new exit (range 7) 556 | -10/Materials | Repaired Grenade Launcher 575 | -10/Materials | Build established: Scavenger-Mutant 589 | -10/Materials | Entered Subcaves 593 | -10/Subcaves | Learned Materials stockpile data 667 | -10/Subcaves | Learned location of Zion (-7) 667 | -10/Subcaves | Met a Zionite searching for "candidates" 1073 | -10/Subcaves | A swath of the cavern ceiling suddenly collapsed 1120 | -10/Subcaves | Ambushed by Subdweller buried in earth 1121 | -10/Subcaves | Core integrity fell below 50% 1276 | -10/Subcaves | Ambushed by Subdwellers from Twisted Machinery 1282 | -10/Subcaves | Ambushed by Subdweller buried in earth 1538 | -10/Subcaves | Shifting Twisted Machinery released Battle Cannon 1545 | -10/Subcaves | Shifting Twisted Machinery released Battle Cannon 1602 | -10/Subcaves | Shifting Twisted Machinery released Sub. Machine Gun 1602 | -10/Subcaves | Shifting Twisted Machinery released Shrapnel Trap 1679 | -10/Subcaves | Ambushed by Subdweller buried in earth 1955 | -10/Subcaves | Build established: Mutant 2214 | -10/Subcaves | Core integrity fell below 20% 2230 | -10/Subcaves | Discovered new exit (range 14) 2558 | -10/Subcaves | Disturbed a concealed Subdweller 2621 | -10/Subcaves | Destroyed by JP-CK5(R) with Subdweller Machine Gun Last Messages --------------- 02545_ Found 31 Matter. 02546_ Acquired 30 matter. 02546_ Searching scrap... 02546_ Found Sub. Power Source. 02546_ Found 31 Matter. 02550_ Dropped Lgt. Treads. 02551_ Acquired Sub. Monowheel. 02554_ Dropped Wheel. 02555_ Acquired Sub. Power Source. 02556_ Acquired 10 matter. 02558_ JP-CK5(R) angrily emerges from the Twisted Machinery. 02562_ Searching scrap... 02562_ Found Sub. Beam Cannon. 02562_ Found 38 Matter. 02562_ E7-FX5(u) builds Twisted Machinery. 02563_ Sub. Machine Gun destroyed. 02565_ Acquired 10 matter. 02565_ Dropped Shrapnel Trap. 02598_ Mining Laser destroyed. Map ----- +----------------------------------------------------+ | ????????????????????????# ### "&####????????????? | | ????????????#???????????# ##"##]"" "##???????????? | | ???????????## ????###??## #"]"#%"""" #???????????? | | ???????????# ??## #### #"&=]#[""""#???????????? | | ???????????# ## # ## #% %"#=&"# ???????????? | | ???????????# ##""## ###? ??????????? | | ????????????# #### #???? ??????????? | | ????????????# ##### # ## #?????????? | | ?????????????????## ## #???????????? | | ????????????????## #???????????? | | ???????????????## ### #???????????? | | ?????????????### ### ####???# ##???????????? | | ????????????## #?## ##?????????????????????? | | ???????????## ######??????????????????????? | | ???????????# ##????????????????????????? | | ???????????## ####?????????????????????? | | ????????????## ### #?????????????????????? | | ?????????????# #####R #?????????????????????? | | ?????????????## ### ## #?????????????????????? | | ??????????????#### ## ##?????????????????????? | | ????????????##### ## ##??????????????????????? | | ???????????## ##??????????????????????? | | ???????????# ##?????????????????????? | | ???????????# ### #?????????????????????? | | ???????????## #?## ##???????#????????????? | | ????????????## ##?## ###@ ##????? #????????????? | | ?????????????# #??###?## ##??? #?????????????? | | ?????????????# #???##### #?? #?????????????? | | ?????????????## #???# ## #?????????????? | | ??????????????## #???# #?????????????? | | ???????????????###???## ##?????????????? | | ??????????????????????## ##??????????????? | | ???????????????????????# ##???????????????? | | ???????????????????????## ######????????????????? | | ????????????????????????# ##????????????????????? | | ???????????????????###### #????????????????????? | | ?????????????###??## #????????????????????? | | ????????????## #??# #???? ###?????#####?? | | ????????????# ##?### #???? ??###"" ##? | | ????????????# ### ## # #????? ## "" #? | | ????????????## ### ### ??????# """#? | | ????????????## ## ##?? #???????? ""?? | | ???????????## ###??##??????????# ##? | | ???????????# #???????????????# #? | | ???????????## ## #????????????##### ##? | | ????????????# ## ### #????????????# # ##? | | ????????????## ## ### ####???????????## #? | | ?????????????##### ##??????????????# #? | | ?????????????????## #??????????###??## ###? | | ??????????????###?## #######????## #??## ## ##? | +----------------------------------------------------+ Best States ------------- Heat Dissipation 25 Energy Generation 10 Energy Capacity 250 Matter Stores 300 Matter Capacity 300 Sight Range 16 Terrain Scan Density 10 Evasion (%) 44 Recoil Reduction 1 Item Schematics ----------------- None Robot Schematics ------------------ None Fabricated ------------ Nothing Repaired ---------- Grenade Launcher | 58% | -10/Materials Alien Tech Used ----------------- None Achievements -------------- None Challenges ------------ None Game ------ Seed HugeProtonWheel Manual? 0 Play Time 00:24:00 Cumulative 365.5 hours Start 2025.06.06 @ 09:05:48 End 2025.06.06 @ 09:35:42 Sessions 1 Manual Loads 0 Difficulty Rogue Special Mode None Game No. 411 Rogue 411 Adventurer 0 Explorer 0 Win Type - Total 6 Types 3/1/1/1/0/0/0/0/0/0 Lore% 67 Gallery% 70 Achievement% 68 Wizard Run 0 Options --------- Layout 1 ASCII 0 Keyboard 0 Movement Numpad Keybinds 0 Fullscreen 1 Font 32/SmallcapsGlow Map View 50x35 Zoom Use 0% Tactical HUD 1 Map Filters NONE Filters NONE Steam 1 RUN: 7b23d3c9-36fb-4e16-9740-417dcc106769